fUST/lending_fUST_20240730
["ID","MTS","AMOUNT","RATE_DAILY","PERIOD"]
[333626136,1722295841066,-500.0,0.00013698,2]
[333626137,1722295841081,-500.0,0.00013698,2]
[333626138,1722295841090,-500.0,0.00013698,2]
[333626139,1722295841100,-500.0,0.00013698,2]
[333626140,1722295841109,-500.0,0.00013698,2]
[333626141,1722295841121,-1009.09,0.00013698,2]
[333626142,1722295841130,-151.0,0.00013698,2]
[333626143,1722295841140,-151.0,0.00013698,2]
[333626144,1722295841150,-500.0,0.00013698,2]
[333626145,1722295841161,-500.0,0.00013698,2]
[333626146,1722295841172,-880.26,0.00013698,2]
[333626147,1722295841181,-500.0,0.00013698,2]
[333626148,1722295841191,-500.0,0.00013698,2]
[333626149,1722295841201,-1220.36,0.00013698,2]
[333626150,1722295841210,-500.0,0.00013698,2]
[333626151,1722295841219,-500.0,0.00013698,2]
[333626152,1722295841229,-500.0,0.00013698,2]
[333626153,1722295841238,-500.0,0.00013698,2]
[333626154,1722295841248,-1401.73,0.00013698,2]
[333626155,1722295841258,-786.59,0.00013698,2]
[333626156,1722295841268,-505.88408712,0.00013698,2]
[333626157,1722295841280,-500.0,0.00013698,2]
[333626158,1722295841291,-500.0,0.00013698,2]
[333626159,1722295841302,-151.0,0.00013698,2]
[333626160,1722295841311,-500.0,0.00013698,2]
[333626161,1722295841320,-500.0,0.00013698,2]
[333626162,1722295841331,-500.0,0.00013698,2]
[333626163,1722295841340,-643.09,0.00013698,2]
[333626164,1722295841350,-516.22,0.00013698,2]
[333626165,1722295841361,-500.0,0.00013698,2]
[333626166,1722295841371,-500.0,0.00013698,2]
[333626167,1722295841380,-500.0,0.00013698,2]
[333626168,1722295841390,-935.53,0.00013698,2]
[333626169,1722295841399,-500.0,0.00013698,2]
[333626170,1722295841409,-501.57485765,0.00013698,2]
[333626171,1722295841418,-511.45,0.00013698,2]
[333626172,1722295841428,-500.0,0.00013698,2]
[333626173,1722295841437,-500.0,0.00013698,2]
[333626174,1722295841446,-500.0,0.00013698,2]
[333626175,1722295841455,-500.0,0.00013698,2]
[333626176,1722295841465,-500.0,0.00013698,2]
[333626177,1722295841475,-151.0,0.00013698,2]
[333626178,1722295841484,-151.0,0.00013698,2]
[333626179,1722295841494,-151.0,0.00013698,2]
[333626180,1722295841504,-151.0,0.00013698,2]
[333626181,1722295841513,-500.0,0.00013698,2]
[333626182,1722295841523,-151.0,0.00013698,2]
[333626183,1722295841532,-500.0,0.00013698,2]
[333626184,1722295841542,-151.0,0.00013698,2]
[333626185,1722295841551,-151.0,0.00013698,2]
[333626186,1722295841561,-151.0,0.00013698,2]
[333626187,1722295841570,-500.0,0.00013698,2]
[333626188,1722295841579,-151.0,0.00013698,2]
[333626189,1722295841589,-151.0,0.00013698,2]
[333626190,1722295841598,-151.0,0.00013698,2]
[333626191,1722295841608,-151.0,0.00013698,2]
[333626192,1722295841617,-151.0,0.00013698,2]
[333626193,1722295841627,-151.0,0.00013698,2]
[333626194,1722295841636,-500.0,0.00013698,2]
[333626195,1722295841647,-151.0,0.00013698,2]
[333626196,1722295841656,-178.05078302,0.00013698,2]
[333626197,1722295841665,-688.86,0.00013698,2]
[333626198,1722295841674,-500.0,0.00013698,2]
[333626199,1722295841684,-1405.12,0.00013698,2]
[333626200,1722295841693,-151.0,0.00013698,2]
[333626201,1722295841702,-151.0,0.00013698,2]
[333626202,1722295841711,-809.95,0.00013698,2]
[333626203,1722295841721,-151.0,0.00013698,2]
[333626204,1722295841730,-151.0,0.00013698,2]
[333626205,1722295841740,-151.0,0.00013698,2]
[333626206,1722295841750,-500.0,0.00013698,2]
[333626207,1722295841761,-500.0,0.00013698,2]
[333626208,1722295841770,-675.05,0.00013698,2]
[333626209,1722295841780,-500.0,0.00013698,2]
[333626210,1722295841789,-500.0,0.00013698,2]
[333626211,1722295841798,-500.0,0.00013698,2]
[333626212,1722295841807,-500.0,0.00013698,2]
[333626213,1722295841817,-501.02200746,0.00013698,2]
[333626214,1722295841828,-500.0,0.00013698,2]
[333626215,1722295841839,-500.0,0.00013698,2]
[333626216,1722295841851,-500.0,0.00013698,2]
[333626217,1722295841862,-1044.86,0.00013698,2]
[333626218,1722295841871,-500.0,0.00013698,2]
[333626219,1722295841880,-809.6,0.00013698,2]
[333626220,1722295841889,-503.26744277,0.00013698,2]
[333626221,1722295841900,-500.0,0.00013698,2]
[333626222,1722295841909,-500.0,0.00013698,2]
[333626223,1722295841919,-1481.52,0.00013698,2]
[333626224,1722295841929,-500.0,0.00013698,2]
[333626225,1722295841938,-500.0,0.00013698,2]
[333626226,1722295841949,-162.124551,0.00013698,2]
[333626227,1722295841959,-162.124551,0.00013698,2]
[333626228,1722295841969,-151.0,0.00013698,2]
[333626229,1722295841979,-500.0,0.00013698,2]
[333626230,1722295841988,-162.124551,0.00013698,2]
[333626231,1722295842061,-162.124551,0.00013698,2]
[333626232,1722295842073,-500.0,0.00013698,2]
[333626233,1722295842083,-162.124551,0.00013698,2]
[333626234,1722295842093,-162.124551,0.00013698,2]
[333626235,1722295842103,-162.124551,0.00013698,2]
[333626236,1722295842112,-162.124551,0.00013698,2]
[333626237,1722295842124,-162.124551,0.00013698,2]
[333626238,1722295842137,-529.55,0.00013698,2]
[333626239,1722295842148,-2202.15,0.00013698,2]
[333626240,1722295842159,-162.124551,0.00013698,2]
[333626241,1722295842169,-162.124551,0.00013698,2]
[333626242,1722295842179,-162.124551,0.00013698,2]
[333626243,1722295842190,-2157.48,0.00013698,2]
[333626244,1722295842201,-162.124551,0.00013698,2]
[333626245,1722295842211,-162.124551,0.00013698,2]
[333626246,1722295842221,-162.124551,0.00013698,2]
[333626248,1722295842230,-162.124551,0.00013698,2]
[333626249,1722295842240,-162.124551,0.00013698,2]
[333626250,1722295842249,-599.59,0.00013698,2]
[333626251,1722295842258,-500.0,0.00013698,2]
[333626252,1722295842267,-162.124551,0.00013698,2]
[333626254,1722295842277,-500.0,0.00013698,2]
[333626257,1722295842287,-162.124551,0.00013698,2]
[333626260,1722295842296,-151.0,0.00013698,2]
[333626262,1722295842308,-162.124557,0.00013698,2]
[333626263,1722295842317,-507.16919398,0.00013698,2]
[333626265,1722295842327,-500.0,0.00013698,2]
[333626266,1722295842337,-151.0,0.00013698,2]
[333626267,1722295842348,-151.0,0.00013698,2]
[333626268,1722295842359,-151.0,0.00013698,2]
[333626269,1722295842369,-500.0,0.00013698,2]
[333626270,1722295842378,-151.0,0.00013698,2]
[333626271,1722295842388,-151.0,0.00013698,2]
[333626272,1722295842397,-3034.73,0.00013698,2]
[333626273,1722295842406,-151.0,0.00013698,2]
[333626274,1722295842416,-151.0,0.00013698,2]
[333626275,1722295842425,-500.0,0.00013698,2]
[333626276,1722295842434,-151.0,0.00013698,2]
[333626277,1722295842443,-151.245314,0.00013698,2]
[333626278,1722295842453,-1257.79,0.00013698,2]
[333626279,1722295842462,-625.78,0.00013698,2]
[333626280,1722295842471,-151.0,0.00013698,2]
[333626281,1722295842480,-248.125235,0.00013698,2]
[333626282,1722295842490,-151.0,0.00013698,2]
[333626283,1722295842500,-500.0,0.00013698,2]
[333626284,1722295842510,-248.125235,0.00013698,2]
[333626285,1722295842520,-248.125235,0.00013698,2]
[333626286,1722295842529,-500.0,0.00013698,2]
[333626287,1722295842539,-248.125235,0.00013698,2]
[333626288,1722295842549,-248.125235,0.00013698,2]
[333626289,1722295842558,-248.125235,0.00013698,2]
[333626290,1722295842567,-248.125235,0.00013698,2]
[333626292,1722295842576,-248.125235,0.00013698,2]
[333626294,1722295842586,-151.0,0.00013698,2]
[333626295,1722295842596,-248.125235,0.00013698,2]
[333626296,1722295842605,-248.125235,0.00013698,2]
[333626297,1722295842615,-151.0,0.00013698,2]
[333626299,1722295842624,-248.125235,0.00013698,2]
[333626301,1722295842633,-151.0,0.00013698,2]
[333626302,1722295842643,-248.125235,0.00013698,2]
[333626303,1722295842653,-248.125235,0.00013698,2]
[333626304,1722295842667,-248.125235,0.00013698,2]
[333626306,1722295842676,-248.125235,0.00013698,2]
[333626307,1722295842686,-500.0,0.00013698,2]
[333626308,1722295842696,-248.125235,0.00013698,2]
[333626309,1722295842706,-248.125235,0.00013698,2]
[333626311,1722295842716,-248.125235,0.00013698,2]
[333626312,1722295842726,-248.125235,0.00013698,2]
[333626313,1722295842737,-248.125244,0.00013698,2]
[333626314,1722295842747,-2047.68,0.00013698,2]
[333626315,1722295842760,-500.0,0.00013698,2]
[333626317,1722295842770,-500.0,0.00013698,2]
[333626319,1722295842781,-547.02,0.00013698,2]
[333626320,1722295842791,-151.0,0.00013698,2]
[333626321,1722295842801,-151.0,0.00013698,2]
[333626322,1722295842810,-236.671377,0.00013698,2]
[333626324,1722295842820,-1209.23,0.00013698,2]
[333626325,1722295842830,-2711.51,0.00013698,2]
[333626326,1722295842839,-500.0,0.00013698,2]
[333626327,1722295842849,-156.793781,0.00013698,2]
[333626328,1722295842858,-156.793781,0.00013698,2]
[333626329,1722295842868,-500.0,0.00013698,2]
[333626330,1722295842877,-156.793781,0.00013698,2]
[333626331,1722295842887,-156.793781,0.00013698,2]
[333626332,1722295842896,-156.793781,0.00013698,2]
[333626333,1722295842906,-156.793781,0.00013698,2]
[333626334,1722295842915,-156.793781,0.00013698,2]
[333626335,1722295842925,-156.793781,0.00013698,2]
[333626336,1722295842934,-156.793781,0.00013698,2]
[333626337,1722295842944,-156.793781,0.00013698,2]
[333626338,1722295842953,-156.793781,0.00013698,2]
[333626339,1722295842963,-156.793781,0.00013698,2]
[333626340,1722295842973,-156.793781,0.00013698,2]
[333626341,1722295842983,-7483.01,0.00013698,2]
[333626342,1722295842993,-156.793781,0.00013698,2]
[333626343,1722295843003,-156.793781,0.00013698,2]
[333626344,1722295843013,-156.793781,0.00013698,2]
[333626345,1722295843023,-500.0,0.00013698,2]
[333626346,1722295843033,-156.793781,0.00013698,2]
[333626347,1722295843043,-156.793781,0.00013698,2]
[333626348,1722295843053,-156.793781,0.00013698,2]
[333626349,1722295843123,-156.793774,0.00013698,2]
[333626350,1722295843134,-500.0,0.00013698,2]
[333626351,1722295843145,-907.73,0.00013698,2]
[333626352,1722295843159,-634.81,0.00013698,2]
[333626353,1722295843169,-9265.63,0.00013698,2]
[333626354,1722295843179,-2053.41,0.00013698,2]
[333626355,1722295843188,-1462.87,0.00013698,2]
[333626356,1722295843198,-500.0,0.00013698,2]
[333626357,1722295843207,-500.0,0.00013698,2]
[333626358,1722295843217,-518.27188,0.00013698,2]
[333626359,1722295843226,-518.27188,0.00013698,2]
[333626360,1722295843235,-518.27188,0.00013698,2]
[333626361,1722295843245,-518.27188,0.00013698,2]
[333626362,1722295843258,-518.27188,0.00013698,2]
[333626363,1722295843268,-518.27188,0.00013698,2]
[333626364,1722295843277,-518.27188,0.00013698,2]
[333626365,1722295843286,-518.27188,0.00013698,2]
[333626366,1722295843296,-518.27188,0.00013698,2]
[333626367,1722295843305,-518.27188,0.00013698,2]
[333626368,1722295843315,-518.27188,0.00013698,2]
[333626369,1722295843324,-500.0,0.00013698,2]
[333626370,1722295843333,-518.27188,0.00013698,2]
[333626371,1722295843343,-518.27188,0.00013698,2]
[333626372,1722295843352,-518.27188,0.00013698,2]
[333626373,1722295843362,-518.27188,0.00013698,2]
[333626374,1722295843371,-518.27188,0.00013698,2]
[333626375,1722295843381,-518.27188,0.00013698,2]
[333626376,1722295843390,-1946.52,0.00013698,2]
[333626377,1722295843400,-995.03,0.00013698,2]
[333626378,1722295843409,-500.0,0.00013698,2]
[333626379,1722295843419,-518.27188,0.00013698,2]
[333626380,1722295843428,-518.27188,0.00013698,2]
[333626381,1722295843437,-491.29984699,0.00013698,2]
[333626382,1722295843446,-518.27188,0.00013698,2]
[333626383,1722295843456,-500.0,0.00013698,2]
[333626384,1722295843466,-70.87847051,0.00013698,2]
[333626385,1722295843505,-429.12152949,0.00013698,2]
[333626386,1722295843515,-739.45329051,0.00013698,2]
[333626387,1722295843544,-2673.10670949,0.00013698,2]
[333626388,1722295843553,-742.7,0.00013698,2]
[333626389,1722295843563,-500.0,0.00013698,2]
[333626390,1722295843572,-500.0,0.00013698,2]
[333626391,1722295843582,-1861.8,0.00013698,2]
[333626392,1722295843596,-500.2828353,0.00013698,2]
[333626393,1722295843618,-500.0,0.00013698,2]
[333626394,1722295843636,-607.88773344,0.00013698,2]
[333626395,1722295843656,-749.09,0.00013698,2]
[333626396,1722295843675,-5216.66,0.00013698,2]
[333626397,1722295843693,-500.0,0.00013698,2]
[333626398,1722295843711,-1145.53,0.00013698,2]
[333626399,1722295843726,-1505.96,0.00013698,2]
[333626400,1722295843744,-2078.08,0.00013698,2]
[333626401,1722295843765,-304.79691326,0.00013698,2]
[333626402,1722295843782,-500.0,0.00013698,2]
[333626403,1722295843796,-912.47,0.00013698,2]
[333626404,1722295843814,-500.0,0.00013698,2]
[333626405,1722295843832,-2369.02,0.00013698,2]
[333626406,1722295843846,-500.0,0.00013698,2]
[333626407,1722295843862,-12665.73,0.00013698,2]
[333626408,1722295843878,-500.0,0.00013698,2]
[333626409,1722295843894,-1683.79,0.00013698,2]
[333626410,1722295843909,-747.66,0.00013698,2]
[333626411,1722295843924,-500.0,0.00013698,2]
[333626412,1722295843939,-500.0,0.00013698,2]
[333626413,1722295843954,-500.0,0.00013698,2]
[333626414,1722295843969,-978.71,0.00013698,2]
[333626415,1722295843984,-1557.49,0.00013698,2]
[333626416,1722295844000,-210.00714975,0.00013698,2]
[333626417,1722295844039,-274.14,0.00013698,2]
[333626418,1722295844553,-15.85285025,0.00013698,2]
[333626419,1722295844562,-500.0,0.00013698,2]
[333626420,1722295844572,-500.0,0.00013698,2]
[333626421,1722295844582,-349.96903552,0.00013698,2]
[333626422,1722295844593,-156.75096448,0.00013698,2]
[333626423,1722295844602,-879.26,0.00013698,2]
[333626424,1722295844612,-977.2,0.00013698,2]
[333626425,1722295844621,-500.0,0.00013698,2]
[333626426,1722295844631,-500.0,0.00013698,2]
[333626427,1722295844641,-500.0,0.00013698,2]
[333626428,1722295844650,-500.0,0.00013698,2]
[333626429,1722295844662,-2462.56,0.00013698,2]
[333626430,1722295844672,-500.0,0.00013698,2]
[333626431,1722295844681,-2219.57,0.00013698,2]
[333626432,1722295844690,-2219.57,0.00013698,2]
[333626433,1722295844699,-500.0,0.00013698,2]
[333626434,1722295844709,-2219.57,0.00013698,2]
[333626435,1722295844718,-2219.57,0.00013698,2]
[333626436,1722295844728,-1273.77,0.00013698,2]
[333626437,1722295844738,-500.0,0.00013698,2]
[333626438,1722295844749,-2219.57,0.00013698,2]
[333626439,1722295844758,-806.78,0.00013698,2]
[333626440,1722295844768,-2219.57,0.00013698,2]
[333626441,1722295844778,-2219.57,0.00013698,2]
[333626442,1722295844787,-2219.57,0.00013698,2]
[333626443,1722295844796,-2219.57,0.00013698,2]
[333626444,1722295844805,-2219.57,0.00013698,2]
[333626445,1722295844815,-500.0,0.00013698,2]
[333626446,1722295844824,-1542.2089164,0.00013698,2]
[333626457,1722296465235,1000.0,0.00027,120]
[333626510,1722297031921,-533.46933228,9.999e-05,2]
[333626512,1722297031930,-154.7601403,9.999e-05,2]
[333626514,1722297031940,-154.71377951,9.999e-05,2]
[333626516,1722297031950,-300.0,0.00012471,2]
[333626518,1722297031959,-1357.91429836,0.00012472,2]
[333626648,1722297042989,-763.96154133,0.00012472,2]
[333626661,1722297473866,273.419,0.00027,120]
[333626734,1722298238114,-154.8064826,9.999e-05,2]
[333626735,1722298238124,-300.0,0.0001076,2]
[333626736,1722298238136,-7939.40536103,0.00010761,2]
[333626748,1722298243223,-452.45148543,0.00010761,2]
[333626749,1722298243276,-609.51885624,0.00010761,2]
[333626750,1722298243288,-2910.46408717,0.00010761,2]
[333626751,1722298243299,-2492.5,0.00010761,2]
[333626775,1722298669427,11000.0,0.00027,120]
[333626778,1722298912831,10462.0,0.00027,120]
[333626779,1722299123054,-180.95215819,9.999e-05,2]
[333626780,1722299123079,-404.54951869,9.999e-05,2]
[333626781,1722299123107,-300.0,0.00010517,2]
[333626782,1722299123133,-24014.49832312,0.00010518,2]
[333626841,1722299433657,-206.30346806,9.999e-05,2]
[333626844,1722299433668,-248.79133132,9.999e-05,2]
[333626846,1722299433678,-287.00275421,9.999e-05,2]
[333626847,1722299433688,-300.0,0.00010517,2]
[333626849,1722299433698,-413.40024222,0.00010518,2]
[333626851,1722299433710,-472.10143466,0.00010518,2]
[333626854,1722299433720,-157.31333746,0.00010518,2]
[333626856,1722299433730,-72.10619657,0.00010518,2]
[333626859,1722299433742,-913.496781,0.00010518,2]
[333626861,1722299433755,-643.66630964,0.00010518,2]
[333626863,1722299433765,-262.56,0.00010959,2]
[333626865,1722299433775,-104.65342475,0.00010959,2]
[333626867,1722299433788,-267.0,0.00010959,2]
[333626869,1722299433801,-173.60657525,0.00010959,2]
[333626871,1722299433811,-95.6425504,0.00010959,2]
[333626921,1722299438531,-358.7474496,0.00010959,2]
[333626924,1722299438542,-378.66,0.00010959,2]
[333626926,1722299438551,-315.55,0.00010959,2]
[333626928,1722299438561,-262.95,0.00010959,2]
[333626930,1722299438570,-219.13,0.00010959,2]
[333626932,1722299438580,-182.61,0.00010959,2]
[333626934,1722299438591,-152.17,0.00010959,2]
[333626936,1722299438601,-760.89,0.00010959,2]
[333626938,1722299438611,-176.826663,0.0001105,2]
[333626940,1722299438621,-4607.49342259,0.00011108,2]
[333626942,1722299438630,-176.826663,0.00011146,2]
[333626944,1722299438640,-176.826663,0.00011242,2]
[333626946,1722299438650,-4607.49342259,0.00011274,2]
[333626948,1722299438659,-306.0,0.000113,2]
[333626962,1722299438772,-176.826663,0.00011338,2]
[333626964,1722299438782,-294.0793213,0.00011378,2]
[333626966,1722299438791,-176.826663,0.00011434,2]
[333626968,1722299438801,-176.826663,0.0001153,2]
[333626970,1722299438811,-420.0,0.00011569,2]
[333626972,1722299438820,-176.826663,0.00011626,2]
[333626974,1722299438830,-153.0,0.00011841,2]
[333626976,1722299438843,-371.2407466,0.00011841,2]
[333626978,1722299438852,-153.0,0.00011882,2]
[333626980,1722299438862,-261.3543789,0.00011882,2]
[333626982,1722299438871,-153.0,0.00011956,2]
[333626984,1722299438881,-153.0,0.00011978,2]
[333626986,1722299438891,-153.0,0.00012056,2]
[333626988,1722299438900,-153.0,0.00012056,2]
[333626990,1722299438910,-153.0,0.00012078,2]
[333626992,1722299438920,-294.0793213,0.00012156,2]
[333626994,1722299438930,-294.0793213,0.00012156,2]
[333626996,1722299438940,-294.0793213,0.00012156,2]
[333626998,1722299438949,-153.0,0.00012156,2]
[333627000,1722299438959,-153.0,0.00012156,2]
[333627002,1722299438969,-153.0,0.00012156,2]
[333627003,1722299438978,-153.0,0.00012156,2]
[333627005,1722299438988,-153.0,0.00012156,2]
[333627007,1722299438997,-153.0,0.00012156,2]
[333627010,1722299439007,-153.0,0.00012156,2]
[333627012,1722299439017,-294.0793213,0.00012178,2]
[333627014,1722299439028,-294.0793213,0.000122,2]
[333627016,1722299439038,-294.0793213,0.000123,2]
[333627017,1722299439048,-294.0793213,0.000123,2]
[333627019,1722299439057,-153.0,0.00012356,2]
[333627021,1722299439067,-306.0,0.00012704,2]
[333627023,1722299439076,-464.58936832,0.00012726,2]
[333627025,1722299439092,-122.41063168,0.00012726,2]
[333627027,1722299439101,-34914.42398507,0.00012749,2]
[333627029,1722299439112,-200.0,0.00012986,2]
[333627031,1722299439122,-6771.19554478,0.00013,5]
[333627033,1722299439132,-24883.96983845,0.00013,2]
[333627036,1722299439148,-2674.07835349,0.00013,2]
[333627038,1722299439160,-25133.20668299,0.00013,2]
[333627157,1722299443289,-2968.02757242,0.00013,2]
[333627184,1722299443527,-8911.72411201,0.00013,2]
[333627185,1722299443537,-1071.37803696,0.00013385,2]
[333627187,1722299443546,-1071.37803694,0.00013438,2]
[333627189,1722299443556,-150.0,0.00013486,2]
[333627190,1722299443566,-506.0,0.00013486,2]
[333627192,1722299443575,-1410.0,0.00013486,2]
[333627194,1722299443585,-64.91981409,0.00013492,2]
[333627197,1722299443599,-316.76098509,0.00013492,2]
[333627494,1722299446526,-294.0793213,0.00011978,2]
[333627496,1722299446538,-689.69723776,0.00013492,2]
[333627498,1722299446549,-1071.37803694,0.00013545,2]
[333627501,1722299446560,-905.68238028,0.0001358,2]
[333627503,1722299446570,-5261.3166676,0.00013588,2]
[333627505,1722299446580,-1677.85366685,0.00013598,2]
[333627507,1722299446590,-1071.37803694,0.00013598,2]
[333627509,1722299446602,-423.05675416,0.000136,2]
[333627511,1722299446613,-955.0,0.000136,2]
[333627513,1722299446624,-335.41648324,0.000136,2]
[333627516,1722299446635,-531.14141491,0.00013674,2]
[333638505,1722300409466,3188.4744,0.00027,120]
[333638532,1722300632555,-161.21716942,9.999e-05,2]
[333638533,1722300632565,-300.0,0.0001253,2]
[333638534,1722300632574,-125.02024055,0.00012531,2]
[333638535,1722300632586,-3210.3,0.00012531,2]
[333638536,1722300632598,-510.30323151,0.00012531,2]
[333638569,1722300638533,-21054.37652794,0.00012531,2]
[333638571,1722300638543,-200.0,0.00012986,2]
[333638573,1722300638554,-5309.48206098,0.00013236,2]
[333638575,1722300638563,-3092.1454238,0.00013356,2]
[333638577,1722300638573,-150.0,0.00013456,2]
[333638579,1722300638582,-506.0,0.00013456,2]
[333638581,1722300638592,-1410.0,0.00013456,2]
[333638582,1722300638604,-151.482,0.00013456,2]
[333638585,1722300638624,-153.0,0.000135,2]
[333638587,1722300638642,-206.8246195,0.000135,2]
[333638588,1722300638657,-206.8246195,0.000135,2]
[333638589,1722300638673,-446.9686805,0.000135,2]
[333638590,1722300638689,-27586.240815,0.00013588,2]
[333638591,1722300638705,-3385.59777239,0.00013598,5]
[333638592,1722300638721,-97684.3017462,0.00013598,2]
[333638593,1722300638736,-1678.05359982,0.00013598,2]
[333638594,1722300638750,-306.0,0.000136,2]
[333638595,1722300638765,-206.8246195,0.000136,2]
[333638596,1722300638777,-153.0,0.000136,2]
[333638597,1722300638791,-206.8246195,0.000136,2]
[333638598,1722300638806,-413.3835705,0.000136,2]
[333638599,1722300638821,-206.8246195,0.000136,2]
[333638600,1722300638836,-206.8246195,0.000136,2]
[333638601,1722300638852,-206.8246195,0.000136,2]
[333638603,1722300638864,-568.653697,0.00013659,2]
[333638604,1722300638875,-151.0,0.00013659,2]
[333638606,1722300638891,-151.0,0.00013659,2]
[333638608,1722300638905,-568.653697,0.00013659,2]
[333638609,1722300638919,-338.58998,0.00013659,2]
[333638610,1722300638934,-338.58998,0.00013659,2]
[333638611,1722300638946,-151.0,0.00013659,2]
[333638612,1722300638958,-3047.587177,0.00013659,2]
[333638613,1722300638972,-27586.240815,0.00013659,2]
[333638614,1722300638985,-2084.05197311,0.0001366,2]
[333638615,1722300638999,-27586.240815,0.00013664,2]
[333638616,1722300639012,-568.653697,0.00013664,2]
[333638617,1722300639025,-568.653697,0.00013664,2]
[333638618,1722300639038,-338.58998,0.00013664,2]
[333638619,1722300639053,-338.58998,0.00013664,2]
[333638620,1722300639067,-151.0,0.00013664,2]
[333638621,1722300639080,-3047.587177,0.00013664,2]
[333638622,1722300639092,-568.653697,0.00013668,2]
[333638623,1722300639105,-568.653697,0.00013668,2]
[333638624,1722300639120,-338.58998,0.00013668,2]
[333638625,1722300639134,-338.58998,0.00013668,2]
[333638626,1722300639153,-55172.4816301,0.00013668,2]
[333638627,1722300639166,-151.0,0.00013669,2]
[333638628,1722300639179,-151.0,0.00013669,2]
[333638629,1722300639196,-151.0,0.00013669,2]
[333638630,1722300639210,-151.0,0.00013669,2]
[333638631,1722300639223,-1390.25128,0.00013669,2]
[333638632,1722300639236,-441.587104,0.00013669,2]
[333638633,1722300639250,-151.0,0.00013669,2]
[333638634,1722300639263,-158.26979,0.00013669,2]
[333638635,1722300639276,-151.0,0.00013669,2]
[333638636,1722300639289,-1390.25128,0.00013669,2]
[333638637,1722300639302,-151.0,0.00013669,2]
[333638638,1722300639316,-441.587104,0.00013669,2]
[333638639,1722300639330,-158.26979,0.00013669,2]
[333638640,1722300639343,-151.0,0.00013669,2]
[333638641,1722300639356,-547.728295,0.00013669,2]
[333638642,1722300639369,-194.810158,0.00013669,2]
[333638643,1722300639382,-547.728295,0.00013669,2]
[333638644,1722300639396,-194.810158,0.00013669,2]
[333638645,1722300639409,-151.0,0.00013669,2]
[333638646,1722300639423,-568.653697,0.00013669,2]
[333638647,1722300639436,-568.653697,0.00013669,2]
[333638648,1722300639448,-338.58998,0.00013669,2]
[333638649,1722300639461,-338.58998,0.00013669,2]
[333638650,1722300639476,-21664.31580464,0.00013674,2]
[333638651,1722300639488,-585.323571,0.00013674,2]
[333638652,1722300639501,-585.323571,0.00013674,2]
[333638653,1722300639514,-861.283555,0.00013674,2]
[333638654,1722300639655,-861.283555,0.00013674,2]
[333638655,1722300639665,-151.0,0.00013674,2]
[333638656,1722300639674,-151.0,0.00013674,2]
[333638657,1722300639684,-151.0,0.00013674,2]
[333638658,1722300639694,-151.0,0.00013674,2]
[333638659,1722300639705,-151.0,0.00013674,2]
[333638660,1722300639715,-151.0,0.00013674,2]
[333638661,1722300639725,-151.0,0.00013674,2]
[333638662,1722300639735,-151.0,0.00013674,2]
[333638663,1722300639744,-151.0,0.00013674,2]
[333638664,1722300639753,-151.0,0.00013674,2]
[333638665,1722300639763,-151.0,0.00013674,2]
[333638666,1722300639771,-151.0,0.00013674,2]
[333638667,1722300639781,-394.893158,0.00013674,2]
[333638668,1722300639790,-394.893158,0.00013674,2]
[333638669,1722300639800,-151.0,0.00013674,2]
[333638670,1722300639809,-394.893158,0.00013674,2]
[333638671,1722300639819,-394.893158,0.00013674,2]